Cogmind - Beta 15 @@@ ROGUE MODE // 2025.08.01 @ 20:06:34 Player: phil_doe Result: Destroyed by L-31 Rogue with Katana Performance ------------- Evolutions (2) 1000 Regions Visited (4) 800 Robots Destroyed (58) 290 Value Destroyed (1675) 1675 Prototype IDs (4) 80 Alien Tech Used (0) 0 Bonus (103) 103 TOTAL SCORE: 3948 Bonus ------- Follower Combat Kills 103 Cogmind --------- Core Integrity 0/550 Matter 290/300 Energy 290/290 System Corruption 10% Temperature Warning (300) Movement Walking (190) Ox1 Location -8/Storage Parts ------- > --- POWER (3) -------- Improved Deuterium Engine > --- PROPULSION (2) --- Aluminum Leg Carbon-fiber Leg > --- UTILITY (4) ------ Large Storage Unit > --- WEAPON (2) ------- (None) > --- INVENTORY (15) --- Improved Deuterium Engine Improved Treads Armored Treads Cesium-ion Thruster Improved Heat Sink Improved Cooling System Advanced Visual Processing Unit Improved Sensor Array Signal Interpreter Improved Terrain Scanner Advanced Targeting Computer ECM Suite Medium Armor Plating Peak State ------------ > --- POWER ------------ Light Ion Engine Improved Deuterium Engine Improved Deuterium Engine > --- PROPULSION ------- Improved Treads Armored Treads > --- UTILITY ---------- Large Storage Unit Sensor Array Improved Signal Interpreter System Shield > --- WEAPON ----------- Field Laser Advanced Beam Cannon > --- INVENTORY -------- Light Ion Engine Light Ion Engine Light Deuterium Engine Light Nuclear Core Improved Treads Improved Treads Improved Heat Sink Medium Storage Unit Visual Processing Unit Signal Interpreter Improved Terrain Scanner Hardened Light Armor Plating Light EM Pulse Cannon Advanced Beam Cannon Advanced Beam Cannon [Rating: 31] Favorites ----------- Power Light Ion Engine Engine Light Ion Engine Power Core Light Nuclear Core Propulsion Improved Treads Treads Improved Treads Leg Carbon-fiber Leg Wheel Wheel Utility Large Storage Unit Device Sensor Array Storage Large Storage Unit Processor Improved Signal Interpreter Hackware System Shield Weapon Field Laser Energy Gun Field Laser Energy Cannon Advanced Beam Cannon Launcher Mini Grenade Launcher Build | -11 -10 -9 -8 -8 ------- Run | Yrd Mat Mat Mat Sto Slots Evolved 4 | . . 2 2 . Power 2 | . . 1 1 . Propulsion . | . . . . . Utility 2 | . . 1 1 . Weapon . | . . . . . Parts Attached 52 | 6 7 19 19 1 Power 12 | 1 1 3 7 . Engine 10 | 1 1 2 6 . Core 2 | . . 1 1 . Reactor . | . . . . . Propulsion 12 | 2 . 7 3 . Treads 8 | . . 7 1 . Leg 2 | . . . 2 . Wheel 2 | 2 . . . . Hover . | . . . . . Flight . | . . . . . Utility 12 | 1 3 5 3 . Device 3 | . 1 2 . . Storage 4 | 1 1 2 . . Processor 3 | . 1 1 1 . Hackware 2 | . . . 2 . Protection . | . . . . . Artifact . | . . . . . Weapon 16 | 2 3 4 6 1 Energy Gun 10 | 2 1 2 4 1 Energy Cannon 5 | . 2 1 2 . Ballistic Gun . | . . . . . Ballistic Cannon . | . . . . . Launcher 1 | . . 1 . . Special Weapon . | . . . . . Impact Weapon . | . . . . . Slashing Weapon . | . . . . . Piercing Weapon . | . . . . . Special Melee Weapon . | . . . . . Unidentified Prototypes 1 | . . . 1 . Parts Lost 24 | . . 7 10 7 Power 6 | . . 2 4 . Propulsion 3 | . . 1 2 . Utility 4 | . . . 1 3 Weapon 11 | . . 4 3 4 Highest Loss Streak 7 | . . 3 3 7 To Critical Strikes . | . . . . . Average Backups 11 | 3 8 9 13 14 Power 2 | . 1 2 2 1 Propulsion 1 | 2 2 1 1 3 Utility 4 | . 1 4 5 7 Weapon 2 | . 2 2 3 2 Tool/Special . | . . . . . Unused Backups 19 | . 3 1 7 8 Power 1 | . . . 1 . Propulsion 2 | . 2 . . . Utility 11 | . . . 3 8 Weapon 5 | . 1 1 3 . Tool/Special . | . . . . . Average Slot Usage (%) 85 | . 97 85 82 80 Engine 11 | . 14 9 14 9 Core 2 | . . 2 3 . Treads 12 | . . 19 10 . Leg 1 | . . . 1 18 Wheel 4 | . 28 1 . . Device 4 | . 1 4 6 . Storage 10 | . 14 11 9 9 Processor 11 | . 9 14 9 9 Hackware 4 | . . . 9 18 Energy Gun 8 | . 7 7 8 9 Energy Cannon 10 | . 21 10 8 8 Launcher 1 | . . 3 . . Peak Build Rating 31 | 6 12 17 31 27 Average Rating 18 | 4 9 13 25 26 On Entrance 11 | . 6 9 14 27 Naked Turns . | . . . . . Heaviest Build 51 | 11 23 51 51 37 Greatest Support 46 | 20 20 46 46 25 Greatest Overweight (x) 12 | 1 1 1 12 1 Average Overweight (x) . | . . . 1 1 Largest Inventory Capacity 20 | 8 10 20 15 15 Average Capacity 13 | 7 8 13 15 15 Most Carried 15 | 6 10 13 15 15 Average Carried 11 | 3 8 9 13 14 Final Capacity 15 | 8 10 15 15 15 Final Carried 14 | 6 10 13 14 13 Class Distribution -------------------- 90% | Mutant 9% | Hacker-Mutant Dominant Class ---------------- Mutant | -10/Materials Mutant | -9/Materials Mutant | -8/Materials Hacker-Mutant | -8/Storage Resources | -11 -10 -9 -8 -8 ----------- Run | Yrd Mat Mat Mat Sto Matter Collected 1027 | 238 92 348 349 . Remotely . | . . . . . Salvage Created 1948 | . 265 948 691 44 Parts 114 | . 20 57 34 3 Haulers Intercepted . | . . . . . Recyclers Shooed 4 | . . 3 . 1 Parts Field Recycled . | . . . . . Retrieved Matter . | . . . . . Parts Self-Destructed . | . . . . . Prevented . | . . . . . Kills | -11 -10 -9 -8 -8 ------- Run | Yrd Mat Mat Mat Sto Combat Hostiles Destroyed 50 | . 7 24 18 1 Guns 15 | . 1 6 7 1 Cannons 30 | . 6 14 10 . AOE 5 | . . 4 1 . Classes Destroyed 10 | . 3 4 3 . Worker 1 | . . . 1 . Tunneler 2 | . . 1 1 . Mechanic 1 | . . 1 . . Operator 1 | . . 1 . . Watcher 3 | . 1 2 . . Swarmer 20 | . 3 10 7 . Grunt 18 | . 4 8 6 . Duelist 2 | . . . 1 1 Sentry 9 | . . 6 3 . Hunter 1 | . . . 1 . Best Kill Streak 6 | . 3 6 4 1 Combat Bots Only 5 | . 3 5 4 1 Max Kills in Single Turn 2 | . 1 2 1 1 Gunslinging . | . . . . . Exploded 1 | . . 1 1 . Melee . | . . . . . Uniques/NPCs Destroyed . | . . . . . Combat | -11 -10 -9 -8 -8 -------- Run | Yrd Mat Mat Mat Sto Hostile Shots Fired 296 | . 25 129 115 27 Missed 73 | . 9 32 22 10 Hits 223 | . 16 97 93 17 Melee 10 | . . . . 10 Projectile 213 | . 16 97 93 7 Critical Strikes 6 | . . 5 1 . Damage Taken 3388 | . 179 1272 1449 488 Core 911 | . 23 327 425 136 Absorbed by Shields . | . . . . . Regen/Repaired (Parts) 161 | . . 161 . . Core Remaining (%) 69 | 100 90 18 . . Volleys Fired 138 | . 18 59 52 9 Largest 2 | . 2 2 2 2 Hottest 131 | . 124 124 131 119 Shots Fired 260 | . 36 108 99 17 Gun 133 | . 12 61 51 9 Cannon 125 | . 24 45 48 8 Launcher 2 | . . 2 . . Special . | . . . . . Kinetic . | . . . . . Thermal 170 | . 18 54 89 9 Explosive 2 | . . 2 . . Electromagnetic 88 | . 18 52 10 8 Robot Hit Streak 13 | . 6 13 8 7 Robot Miss Streak 10 | . 4 10 6 2 Penetration Max . | . . . . . Secondary Targets 3 | . . 3 . . Max Gunslinging Chain 1 | . . 1 . . Shots Hit Robots 168 | . 22 73 60 13 Core Hits 82 | . 11 36 31 4 Critical Kills . | . . . . . Critical Parts Destroyed . | . . . . . Critical Strikes 2 | . . 2 . . Corrupt 2 | . . 2 . . Melee Attacks . | . . . . . Impact . | . . . . . Slashing . | . . . . . Piercing . | . . . . . Sneak Attacks . | . . . . . Combat Hostiles . | . . . . . Follow-up Attacks . | . . . . . Damage Inflicted 4283 | . 423 1805 1544 511 Guns 1475 | . 104 663 554 154 Cannons 1724 | . 319 611 658 136 Explosions 1058 | . . 505 332 221 Melee . | . . . . . Ramming 26 | . . 26 . . Kinetic . | . . . . . Thermal 2791 | . 207 984 1225 375 Explosive 335 | . . 134 201 . Electromagnetic 1131 | . 216 661 118 136 Impact . | . . . . . Slashing . | . . . . . Piercing . | . . . . . Highest Corruption 2 | . . . . 2 Average Corruption 1 | . . . . 1 Corruption Purged . | . . . . . Corruption Blocked . | . . . . . Effects 5 | . . . . 5 Message Errors 1 | . . . . 1 Matter Fused 1 | . . . . 1 Heat Flow Errors 1 | . . . . 1 Data Loss (minor) 2 | . . . . 2 Overload Shots . | . . . . . Overflow Damage 115 | . . 42 73 . Projectiles . | . . . . . Explosions 115 | . . 42 73 . Melee . | . . . . . Knockbacks 1 | . . 1 . . Impact 1 | . . 1 . . Kinetic . | . . . . . Secondary . | . . . . . Self-Inflicted Damage 283 | . . 93 145 45 Shots 7 | . . 4 2 1 Rammed 5 | . . 5 . . Targets Rammed 5 | . . 5 . . Kicked . | . . . . . Crushed . | . . . . . Highest Temperature 653 | . 315 653 621 353 Average Temperature 190 | . 119 182 217 174 Received Heat Transfer 846 | . 69 336 387 54 Effects 68 | . . 25 43 . Shutdowns 24 | . . 8 16 . Energy Bleed 8 | . . 4 4 . Interference 10 | . . 2 8 . Matter Decay 5 | . . 2 3 . Short Circuit 3 | . . 1 2 . Damage (major) 15 | . . 6 9 . Damage (core) 3 | . . 2 1 . Siege Activations . | . . . . . Martial Activations . | . . . . . Shielding Activations . | . . . . . Robots Disrupted . | . . . . . Combat Hostiles . | . . . . . Robots Corrupted . | . . . . . Combat Hostiles . | . . . . . Parts Fried 4 | . 2 1 1 . Impact Corruptions . | . . . . . Robots Melted . | . . . . . Combat Hostiles . | . . . . . Parts Melted 7 | . 1 1 5 . Heat Transferred 5059 | . 370 1832 2296 561 Parts Sabotaged . | . . . . . Parts Stolen . | . . . . . Parts Stripped . | . . . . . Power Chain Reactions 7 | . . 5 1 1 Alert | -11 -10 -9 -8 -8 ------- Run | Yrd Mat Mat Mat Sto Maximum Alert Level 1 | . . 1 1 . Low Security (%) 86 | 100 100 73 93 100 Level 1 13 | . . 26 6 . Level 2 . | . . . . . Level 3 . | . . . . . Level 4 . | . . . . . Level 5 . | . . . . . High Security . | . . . . . Max Security . | . . . . . Peak Influence 237 | . 70 237 214 89 Initial 89 | . . . 68 89 Average 83 | . 23 116 76 39 Influence Increases 1721 | . 234 741 629 117 Destroy 0b10 Robot/C 1060 | . 140 480 360 80 Destroy 0b10 Robot/NC 40 | . 5 25 10 . Destroy Leader 226 | . 32 114 70 10 Allied During Kill 12 | . . . . 12 Successful Hack 50 | . 12 16 11 11 Disable Machine 165 | . 30 45 90 . Destroy Structure 63 | . . 31 28 4 Partial Spotted 30 | . . . 30 . Lose Combat Pursuer 75 | . 15 30 30 . Influence Decreases 1721 | . 234 577 581 329 Entered New Map 219 | . . . 96 123 Time Decay 1256 | . 234 507 385 130 Lost Part 206 | . . 70 100 36 Lost Ally 40 | . . . . 40 Squads Dispatched 5 | . 1 1 1 2 Investigation 1 | . 1 . . . Extermination . | . . . . . Reinforcement 2 | . . 1 1 . Assault 2 | . . . . 2 Garrison . | . . . . . Intercept . | . . . . . Searches Triggered . | . . . . . Construction Impeded . | . . . . . Haulers Reinforced . | . . . . . Active Scanning Responses . | . . . . . Cargo Convoy Interrupts . | . . . . . Stealth | -11 -10 -9 -8 -8 --------- Run | Yrd Mat Mat Mat Sto Distress Signals 12 | . 1 6 3 2 Communications Jammed . | . . . . . Distress Signals . | . . . . . Times Spotted 106 | . 21 44 27 14 Peak Tracking Total 11 | . 3 5 5 11 Tactical Retreats 4 | . 1 2 1 . Traps | -11 -10 -9 -8 -8 ------- Run | Yrd Mat Mat Mat Sto Traps Triggered 4 | . 1 1 . 2 Indirectly . | . . . . . Trap Hack Attempts . | . . . . . Triggered . | . . . . . Disarmed . | . . . . . Reprogrammed . | . . . . . Reused . | . . . . . Traps Extracted . | . . . . . Installed . | . . . . . Triggered . | . . . . . Machines | -11 -10 -9 -8 -8 ---------- Run | Yrd Mat Mat Mat Sto Machines Disabled 11 | . 2 3 6 . Max in Single Turn 2 | . 1 1 2 . Machines Repaired . | . . . . . Machines Dismantled . | . . . . . Machines Sabotaged . | . . . . . Overloaded Fab Kills . | . . . . . Hacking | -11 -10 -9 -8 -8 --------- Run | Yrd Mat Mat Mat Sto Machines Accessed 26 | . 7 10 7 2 Terminals 19 | . 7 6 4 2 Fabricators . | . . . . . Repair Stations 3 | . . 2 1 . Recycling Units 3 | . . 2 1 . Scanalyzers 1 | . . . 1 . Garrison Access . | . . . . . Total Hacks 58 | . 11 23 17 7 Successful 32 | . 5 13 9 5 Failed 25 | . 6 9 8 2 Catastrophic 6 | . . 2 3 1 Database Lockouts 1 | . . 1 . . Manual 42 | . 7 17 13 5 Terminals 40 | . 11 13 9 7 Fabricators . | . . . . . Repair Stations 9 | . . 7 2 . Recycling Units 5 | . . 3 2 . Scanalyzers 4 | . . . 4 . Garrison Access . | . . . . . Terminal Hacks 20 | . 5 7 3 5 Record 5 | . 1 2 1 1 Robot Analysis 1 | . 1 . . . Prototype ID Bank 1 | . 1 . . . Emergency Access Points 1 | . . . 1 . Repair Station Index 1 | . . 1 . . Alert Level 2 | . . 1 . 1 Locate Traps 1 | . . . . 1 Dispatch Records 1 | . . 1 . . Security Status 1 | . . . 1 . Patrol Status 3 | . 1 1 . 1 Hauler Manifests 2 | . 1 1 . . Zone Layout 1 | . . . . 1 Fabricator Hacks . | . . . . . Repair Station Hacks 6 | . . 5 1 . Scan Component 4 | . . 3 1 . Repair 2 | . . 2 . . Recycling Unit Hacks 2 | . . 1 1 . Retrieve Components 2 | . . 1 1 . Scanalyzer 4 | . . . 4 . Insert Component 2 | . . . 2 . Analyze 2 | . . . 2 . Garrison Access Hacks . | . . . . . Unauthorized Hacks . | . . . . . Terminals . | . . . . . Fabricators . | . . . . . Repair Stations . | . . . . . Recycling Units . | . . . . . Scanalyzers . | . . . . . Garrison Access . | . . . . . Data Cores Recovered . | . . . . . Used . | . . . . . Hacking Detections 22 | . 5 10 5 2 Full Trace Events . | . . . . . Feedback Events . | . . . . . Feedback Blocked . | . . . . . Robot Schematics Acquired . | . . . . . Robots Built . | . . . . . Authchips . | . . . . . Time . | . . . . . Total Robot Build Rating . | . . . . . Part Schematics Acquired 2 | . . . 2 . Parts Built . | . . . . . Authchips . | . . . . . Time . | . . . . . Total Part Build Rating . | . . . . . Parts Repaired 2 | . . 2 . . Time 64 | . . 64 . . Parts Recycled . | . . . . . Recycled Matter . | . . . . . Retrieved Matter . | . . . . . Retrieved Components 19 | . . 10 9 . Parts Scanalyzed 2 | . . . 2 . Part Schematics Acquired 2 | . . . 2 . Parts Damaged 1 | . . . 1 . Bothacking | -11 -10 -9 -8 -8 ------------ Run | Yrd Mat Mat Mat Sto Used RIF Installer . | . . . . . Robots Hacked . | . . . . . Non-combat . | . . . . . Combat . | . . . . . Robot Hacks Applied . | . . . . . Relay Couplers Released . | . . . . . Fabnet Peak Effective % . | . . . . . Robots Rewired . | . . . . . Allies Hacked . | . . . . . Hacks Repelled . | . . . . . Allies | -11 -10 -9 -8 -8 -------- Run | Yrd Mat Mat Mat Sto Total Allies 2 | . . . . 2 Largest Group 2 | . . . . 2 Highest-Rated Group 62 | . . . . 62 Highest-Rated Ally 31 | . . . . 31 Total Orders . | . . . . . Ally Attacks 31 | . . . . 31 Total Damage 437 | . . . . 437 Kills 3 | . . . . 3 Allies Corrupted . | . . . . . Allies Melted . | . . . . . Intel | -11 -10 -9 -8 -8 ------- Run | Yrd Mat Mat Mat Sto Active Infowar (turns) 2302 | . . 861 1441 . Sensors 2302 | . . 861 1441 . Robot Analysis Total 1 | . 1 . . . Derelict Logs Recovered . | . . . . . Drone Launches . | . . . . . Drone Recoveries . | . . . . . Exploration | -11 -10 -9 -8 -8 ------------- Run | Yrd Mat Mat Mat Sto Turns Passed 5333 | 55 632 2151 2213 282 Spaces Moved 2665 | 51 601 1147 748 118 Core 74 | 8 . . 66 . Treads 1598 | . . 1038 560 . Legs 240 | . . . 122 118 Wheels 753 | 43 601 109 . . Hover . | . . . . . Flight . | . . . . . Fastest Speed 50 | 50 80 95 160 190 Average Speed 164 | 79 87 154 243 190 Slowest Speed 650 | 100 95 240 650 190 Overloaded Moves . | . . . . . Propulsion Burnouts . | . . . . . Robots Hopped . | . . . . . Potential Cave-ins . | . . . . . Cave-ins Triggered . | . . . . . Exploration Rate (%) 43 | 3 84 71 39 20 Regions Visited 4 Branch Regions 1 Pre-discovered Areas . | . . . . . Known Exits Taken 3 | . 1 1 1 . Unknown Exits Taken 1 | 1 . . . . Scrap Searched . | . . . . . Spaces Dug . | . . . . . Terrain Destroyed 59 | . . 30 25 4 Melee . | . . . . . Projectile . | . . . . . AOE 59 | . . 30 25 4 Terrain Rammed . | . . . . . Walls Destroyed . | . . . . . Machines Disabled . | . . . . . Actions | -11 -10 -9 -8 -8 --------- Run | Yrd Mat Mat Mat Sto Total 3343 | 62 675 1406 1042 158 Wait 388 | . 32 147 185 24 Move 2661 | 50 600 1146 747 118 Hop . | . . . . . Pick Up 55 | 6 11 14 22 2 Fast Attach 14 | 6 . 6 2 . Attach 21 | . 1 7 11 2 Detach 3 | . . 1 2 . Swap 28 | . 6 12 8 2 Drop 30 | . 7 9 13 1 Fire 138 | . 18 59 52 9 Melee . | . . . . . Ram . | . . . . . Kick . | . . . . . Crush 5 | . . 5 . . Escape Stasis . | . . . . . Rewire . | . . . . . Trap . | . . . . . Miscellaneous . | . . . . . Route ------- -11/Scrapyard -10/Materials (discovered 3 exits: *Mat x2 / *Min) -9/Materials (discovered 2 exits: *Mat / [*Min]) -8/Materials (discovered 2 exits: *Sto x2) -8/Storage History --------- Turn | Location | Event 18 | -11/Scrapyard | Discovered new exit (range 15) 56 | -11/Scrapyard | Entered Materials 252 | -10/Materials | Discovered new exit (range 15) 265 | -10/Materials | Discovered new exit (range 16) 298 | -10/Materials | Discovered new exit (range 16) 330 | -10/Materials | Build established: Mutant 335 | -10/Materials | Identified exit to Mines 512 | -10/Materials | Identified exit to Materials 688 | -10/Materials | Entered another Materials area 688 | -9/Materials | Evolved 2 slots: Power x1, Utility x1 969 | -9/Materials | Central database locked down 1064 | -9/Materials | Discovered new exit (range 11) 1208 | -9/Materials | Identified exit to Materials 1713 | -9/Materials | Core integrity fell below 50% 1735 | -9/Materials | Core integrity fell below 20% 2044 | -9/Materials | Discovered new exit (range 13) 2199 | -9/Materials | Lost 3 parts (1p2w) 2363 | -9/Materials | Repaired Imp. Treads 2397 | -9/Materials | Repaired Lgt. EM Pulse Cannon 2839 | -9/Materials | Entered another Materials area 2839 | -8/Materials | Evolved 2 slots: Power x1, Utility x1 3000 | -8/Materials | Discovered new exit (range 10) 3051 | -8/Materials | Identified exit to Storage 3259 | -8/Materials | Discovered exit to Storage (range 3) 4020 | -8/Materials | Lost 3 parts (1p1n1w) 4315 | -8/Materials | Core integrity fell below 50% 4345 | -8/Materials | Lost 3 parts (1n1u1w) 5052 | -8/Materials | Entered Storage 5140 | -8/Storage | Build established: Hacker-Mutant 5248 | -8/Storage | Met a pair of Derelict thieves 5324 | -8/Storage | Core integrity fell below 20% 5334 | -8/Storage | Destroyed by L-31 Rogue with Katana Last Messages --------------- 05315_ WE-G74(g) system corrupted by crushing effect. 05316_ Chain reaction triggered in Imp. Ion Engine. 05318_ R-06 Scavenger collects Melee Analysis Suite. 05320_ K-01 Serf collects debris. 05321_ B-36 Bruiser heat damages Lgt. Treads. 05322_ F&UJ&2VZRM4QB TXHALRO|Q=TOEEJFXS 05322_ WE-G74(g) knocked back. 05324_ K-01 Serf collects debris. 05325_ WE-G74(g) destroyed. 05327_ B-36 Bruiser heat damages Rnf. Ion Engine. 05328_ Lgt. EM Pulse Cannon destroyed. 05328_ K-01 Serf collects debris. 05328_ Field Laser destroyed. 05328_ Adv. Beam Cannon destroyed. 05333_ K-01 Serf collects debris. 05334_ Imp. Signal Interpreter destroyed. 05334_ System Shield destroyed. 05334_ System corrupted by crushing effect (+4). 05334_ Field Laser destroyed. 05334_ Hacking Suite destroyed. Map ----- +----------------------------------------------------+ | ?????????????????????????????????????????????????? | | ?????????????????????????????????????????????????? | | ?????????????????????????????????????????????????? | | ?????????????????????????????????????????????????? | | ????????????????????????????????????????????????## | | ????????????????????????????????????????????????# | | ????????????????????????????????????????????????# | | ????????????????????????????????????????????????# | | ????????????????????????????????????????????????# | | ?????????????????????????????#########??????????# | | ?????????????????????????????# T #??????????# | | ????????????????????########## #??????????# | | ????????????????????########## ############ | | ????????????????????## ! !## """## # | | ????????????????????## [ !!## """## # | | ????????????????????##!! ## """## # | | ????????????????????## !## ## """"" # | | ????????????????????####" "### """## """"" # | | ????????????????????###T =[## """## """"" # | | ????????????????????#### !%## """## # | | ?????????#??????????######+### ## # | | ????????? ########## ####+#########+##### | | ????????# !![ = ^ | | ????????+ =k= %=! %g T ^ | | ????????# *[ % ibb ^^ | | ????????????? #### b;ll@ ##################### | | ?????????????????# ##;;####???????????????????? | | ?????????????????# ??####??????????????????????? | | ?????????????????# ?????????????????????????????? | | ?????????????????# ??????????????????????????????? | | ????????????????? ???????????????????????????????? | | ???????????????? ????????????????????????????????? | | ?????????????????????????????????????????????????? | | ?????????????????????????????????????????????????? | | ?????????????????????????????????????????????????? | | ?????????????????????????????????????????????????? | | ?????????????????????????????????????????????????? | | ?????????????????????????????????????????????????? | | ?????????????????????????????????????????????????? | | ?????????????????????????????????????????????????? | | ?????????????????????????????????????????????????? | | ?????????????????????????????????????????????????? | | ?????????????????????????????????????????????????? | | ?????????????????????????????????????????????????? | | ?????????????????????????????????????????????????? | | ?????????????????????????????????????????????????? | | ?????????????????????????????????????????????????? | | ?????????????????????????????????????????????????? | | ?????????????????????????????????????????????????? | | ?????????????????????????????????????????????????? | +----------------------------------------------------+ Best States ------------- Heat Dissipation 50 Energy Generation 32 Energy Capacity 505 Matter Stores 300 Matter Capacity 300 Sight Range 16 Robot Scan Range 14 Terrain Scan Density 10 Evasion (%) 44 Targeting Accuracy 5 Recoil Reduction 2 Offensive Hacking 10 Defensive Hacking 10 Item Schematics ----------------- Adv. Beam Cannon | -8/Materials | Scanalyzed Imp. Deuterium Engine | -8/Materials | Scanalyzed Robot Schematics ------------------ None Fabricated ------------ Nothing Repaired ---------- Imp. Treads | 14% | -9/Materials Lgt. EM Pulse Cannon | 60% | -9/Materials Alien Tech Used ----------------- None Achievements -------------- Safety First Challenges ------------ None Game ------ Seed CobblerEfficiencySpiker Manual? 0 Play Time 01:19:53 Cumulative 10.9 hours Start 2025.07.31 @ 19:09:25 End 2025.08.01 @ 20:06:34 Sessions 5 Manual Loads 0 Difficulty Rogue Special Mode None Game No. 10 Rogue 10 Adventurer 0 Explorer 0 Win Type - Total 0 Types 0/0/0/0/0/0/0/0/0/0 Lore% 5 Gallery% 9 Achievement% 11 Wizard Run 0 Options --------- Layout 0 ASCII 0 Keyboard 1 Movement Arrows Keybinds 0 Fullscreen 2 Font 24/Smallcaps Map View 76x50 Zoom Use 0% Tactical HUD 1 Map Filters NONE Filters NONE Steam 1 RUN: 2d59a137-a2e0-40fa-8791-a12a456ca1bc